[Event "HUN-chT Youth 2019"]
[Site "Budapest"]
[Date "2019.10.29"]
[Round "7.13"]
[White "Losonczi, Marcell"]
[Black "Karacsonyi, Gellert"]
[Result "1-0"]
[ECO "C11"]
[WhiteElo "2249"]
[BlackElo "2301"]
[Annotator "ChessBase"]
[PlyCount "101"]
[EventDate "2019.10.26"]
[EventType "team-tourn"]
[EventCountry "HUN"]
[SourceTitle "playchess.com"]
[Source "ChessBase"]
[SourceQuality "1"]
[TimeControl "5400+30"]

1. e4 {[%emt 0:00:00]} e6 {[%emt 0:00:00]} 2. d4 {[%emt 0:00:00]} d5 {[%emt 0:00:10]} 3. Nc3 {[%emt 0:00:20]} Nf6 {[%emt 0:00:52]} 4. e5 {[%emt 0:00:10]} Nfd7 {[%emt 0:00:10]} 5. f4 {[%emt 0:00:05]} c5 {[%emt 0:00:11]} 6. Nf3 {[%emt 0:00:03]} Nc6 {[%emt 0:00:30]} 7. Be3 {[%emt 0:00:12]} Be7 {[%emt 0:00:21]} 8. Qd2 {[%emt 0:00:12]} O-O {[%emt 0:00:30]} 9. dxc5 {[%emt 0:00:21]} Qa5 {[%emt 0:01:00]} 10. Nb5 {[%emt 0:07:14]} Qxd2+ {[%emt 0:02:45]} 11. Kxd2 {[%emt 0:00:32]} Nxc5 {[%emt 0:01:28]} 12. c3 {[%emt 0:02:59]} f6 {[%emt 0:02:14]} 13. exf6 {[%emt 0:00:13]} gxf6 {[%emt 0:02:41]} 14. Rd1 {[%emt 0:07:08]} a6 {[%emt 0:03:56]} 15. Nc7 {[%emt 0:04:41]} Rb8 {[%emt 0:01:10]} 16. f5 {[%emt 0:00:08]} e5 {[%emt 0:08:42]} 17. Nxd5 {[%emt 0:01:09]} Ne4+ {[%emt 0:01:00]} 18. Kc1 {[%emt 0:00:09]} Bxf5 {[%emt 0:02:28]} 19. Nxe7+ {[%emt 0:00:12]} Nxe7 {[%emt 0:00:15]} 20. Bd3 {[%emt 0:07:56]} Rbc8 {[%emt 0:20:52]} 21. Nh4 {[%emt 0:06:29]} Nxc3 {[%emt 0:02:48]} 22. bxc3 {[%emt 0:01:21]} e4 {[%emt 0:06:09]} 23. Bc2 {[%emt 0:04:43]} Rxc3 {[%emt 0:00:14]} 24. Bd4 {[%emt 0:00:46]} Rc6 {[%emt 0:02:44]} 25. Nxf5 {[%emt 0:05:41]} Nxf5 {[%emt 0:00:08]} 26. Kb2 {[%emt 0:00:22]} Nd6 {[%emt 0:01:57]} 27. Bb3+ {[%emt 0:07:36]} Nc4+ {[%emt 0:01:21]} 28. Kb1 {[%emt 0:01:46]} Kg7 {[%emt 0:00:13]} 29. Rhf1 {[%emt 0:07:47]} b5 {[%emt 0:00:56]} 30. Rf4 {[%emt 0:01:58]} Re8 {[%emt 0:00:47]} 31. Bxc4 {[%emt 0:08:00]} bxc4 {[%emt 0:01:29]} 32. Re1 {[%emt 0:01:15]} Rce6 {[%emt 0:04:09]} 33. Re3 {[%emt 0:00:53]} h5 {[%emt 0:01:27]} 34. Kc2 {[%emt 0:02:13]} Kf7 {[%emt 0:02:15]} 35. Kc3 {[%emt 0:00:54]} Rg8 {[%emt 0:00:56]} 36. g3 {[%emt 0:00:31]} Rge8 {[%emt 0:00:12]} 37. Kxc4 {[%emt 0:02:27]} Rc6+ {[%emt 0:01:27]} 38. Kd5 {[%emt 0:01:30]} Ree6 {[%emt 0:00:43]} 39. Bc5 {[%emt 0:00:18]} Rc8 {[%emt 0:01:07]} 40. Rfxe4 {[%emt 0:05:38]} Rd8+ {[%emt 0:00:26]} 41. Kc4 {[%emt 0:00:05]} Rc6 {[%emt 0:00:08]} 42. Re7+ {[%emt 0:01:16]} Kg6 {[%emt 0:00:07]} 43. R3e6 {[%emt 0:00:51]} Rxe6 {[%emt 0:00:14]} 44. Rxe6 {[%emt 0:00:01]} Rd2 {[%emt 0:00:15]} 45. Rxa6 {[%emt 0:00:28]} Rxh2 {[%emt 0:00:08]} 46. a4 {[%emt 0:01:33]} Rc2+ {[%emt 0:00:35]} 47. Kd5 {[%emt 0:01:59]} Rc3 {[%emt 0:00:12]} 48. Rxf6+ {[%emt 0:00:18]} Kg5 {[%emt 0:00:01]} 49. Rf8 {[%emt 0:00:16]} Kg4 {[%emt 0:00:19]} 50. a5 {[%emt 0:00:20]} Kxg3 {[%emt 0:00:10]} 51. a6 {[%emt 0:00:17]} 1-0

[Event "HUN-chT Youth 2019"]
[Site "Budapest"]
[Date "2019.10.29"]
[Round "7.13"]
[White "Palczert, Matyas"]
[Black "Kovacs, Reka"]
[Result "1-0"]
[ECO "B34"]
[WhiteElo "2009"]
[BlackElo "1300"]
[Annotator "NA"]
[PlyCount "57"]
[EventDate "2019.10.26"]
[EventType "team-tourn"]
[EventCountry "HUN"]
[SourceTitle "playchess.com"]
[Source "ChessBase"]
[SourceQuality "1"]
[TimeControl "5400+30"]

1. e4 {[%emt 0:00:00]} c5 {[%emt 0:00:00]} 2. Nf3 {[%emt 0:00:00]} Nc6 {[%emt 0:00:00]} 3. d4 {[%emt 0:00:00]} cxd4 {[%emt 0:00:00]} 4. Nxd4 {[%emt 0:00:06]} Nf6 {[%emt 0:00:00]} 5. Nc3 {[%emt 0:00:21]} e5 {[%emt 0:00:09]} 6. Ndb5 {[%emt 0:00:20]} d6 {[%emt 0:00:26]} 7. Nd5 {[%emt 0:01:14]} Nxd5 {[%emt 0:00:29]} 8. exd5 {[%emt 0:00:09]} Nb8 {[%emt 0:00:18]} 9. a4 {[%emt 0:01:35]} a6 {[%emt 0:00:31]} 10. Na3 {[%emt 0:00:29]} Be7 {[%emt 0:00:53]} 11. Be2 {[%emt 0:01:42]} O-O {[%emt 0:00:13]} 12. O-O {[%emt 0:00:33]} Bf5 {[%emt 0:00:43]} 13. f4 $146 {[%emt 0:02:08] B33: Sicilian: Pelikan and Sveshnikov Variations} ({Predecessor:} 13. Nc4 Nd7 14. a5 Bg6 15. c3 Rc8 16. Be3 f5 17. f4 exf4 18. Bxf4 Nf6 19. Nb6 Rc7 20. Bf3 Ne4 21. Bxe4 fxe4 {½-½ (32) Sebastian,D (2432)-Kalinitschew,S (2492) Germany 2008}) 13... Bg6 {[%emt 0:02:58]} 14. f5 {[%emt 0:02:14]} Bf6 {[%emt 0:04:48]} 15. fxg6 {[%emt 0:00:26]} fxg6 {[%emt 0:00:18]} 16. Be3 {[%emt 0:00:33]} Nd7 {[%emt 0:00:32]} 17. Nc4 {[%emt 0:01:29]} Rc8 {[%emt 0:01:44]} 18. Nxd6 {[%emt 0:01:04]} Rb8 {[%emt 0:01:08]} 19. Bg4 {[%emt 0:01:07]} Nb6 $18 {[%emt 0:02:44]} 20. Be6+ {[%emt 0:00:54]} Kh8 {[%emt 0:01:33]} 21. Nf7+ {[%emt 0:00:41]} Rxf7 {[%emt 0:00:17]} 22. Bxf7 {[%emt 0:00:10]} Nc4 {[%emt 0:00:37]} 23. Qe2 {[%emt 0:01:23]} Nd6 {[%emt 0:00:52]} 24. Be6 {[%emt 0:00:45]} b5 {[%emt 0:02:17]} 25. axb5 {[%emt 0:01:05]} axb5 {[%emt 0:00:27]} 26. Ba7 {[%emt 0:01:10]} Ra8 {[%emt 0:02:33]} 27. Bc5 {[%emt 0:00:57]} Rb8 {[%emt 0:01:18]} 28. Bxd6 {[%emt 0:00:44]} Qxd6 {[%emt 0:00:17]} 29. Kh1 {[%emt 0:00:25]} 1-0

[Event "HUN-chT Youth 2019"]
[Site "Budapest"]
[Date "2019.10.29"]
[Round "7.14"]
[White "Demjen, Mark"]
[Black "Tancsa, Tamas"]
[Result "1-0"]
[ECO "C97"]
[WhiteElo "1902"]
[BlackElo "2082"]
[Annotator "NA"]
[PlyCount "73"]
[EventDate "2019.10.26"]
[EventType "team-tourn"]
[EventCountry "HUN"]
[SourceTitle "playchess.com"]
[Source "ChessBase"]
[SourceQuality "1"]
[TimeControl "5400+30"]

1. e4 {[%emt 0:00:00]} e5 {[%emt 0:00:00]} 2. Nf3 {[%emt 0:00:00]} Nc6 {[%emt 0:00:00]} 3. Bb5 {[%emt 0:00:00]} a6 {[%emt 0:00:00]} 4. Ba4 {[%emt 0:00:00]} Nf6 {[%emt 0:00:00]} 5. O-O {[%emt 0:00:00]} Be7 {[%emt 0:00:01]} 6. Re1 {[%emt 0:00:00]} b5 {[%emt 0:00:35]} 7. Bb3 {[%emt 0:00:00]} O-O {[%emt 0:00:08]} 8. h3 {[%emt 0:00:00]} d6 {[%emt 0:01:27]} 9. c3 {[%emt 0:00:07]} Na5 {[%emt 0:03:10]} 10. Bc2 {[%emt 0:01:20]} c5 {[%emt 0:05:29]} 11. d4 {[%emt 0:00:06]} Qc7 {[%emt 0:04:54]} 12. d5 {[%emt 0:00:28]} Re8 {[%emt 0:02:01]} 13. Nbd2 {[%emt 0:00:11]} Bf8 {[%emt 0:00:10]} 14. Nf1 {[%emt 0:00:07]} g6 {[%emt 0:00:08]} 15. b3 {[%emt 0:00:11]} Bg7 {[%emt 0:00:30] C97: Closed Ruy Lopez: Chigorin Defence: 11 d4 Qc7, sidelines} 16. Be3 {[%emt 0:00:16]} (16. Ng3 Nb7 17. Bg5 h6 18. Be3 Bd7 19. Qd2 Kh7 20. Nh2 h5 21. Rf1 c4 22. Rac1 cxb3 23. axb3 {1-0 (66) Kamsky,G (2717)-Eljanov,P (2716) Jermuk 2009}) 16... Nh5 {[%emt 0:05:07]} 17. Ng3 $146 {[%emt 0:06:08]} ({Predecessor:} 17. N1d2 Nb7 18. Nh2 Nf4 19. h4 Bd7 20. g3 Nh5 21. Bd3 Rec8 22. Ng4 Nf6 23. Nxf6+ Bxf6 {½-½ (41) Oparin,G (2496)-Stukopin,A (2500) Moscow 2013}) 17... Nxg3 {[%emt 0:08:05]} 18. fxg3 {[%emt 0:00:05]} f5 {[%emt 0:00:08]} 19. Qd2 {[%emt 0:07:20]} Nb7 {[%emt 0:02:37]} 20. Rf1 {[%emt 0:01:32]} Rf8 {[%emt 0:04:07]} 21. Rad1 {[%emt 0:02:16]} c4 {[%emt 0:12:47]} 22. b4 {[%emt 0:00:13]} a5 {[%emt 0:00:40]} 23. exf5 {[%emt 0:04:32]} gxf5 {[%emt 0:00:22]} 24. Nh4 {[%emt 0:00:51]} e4 {[%emt 0:04:22]} 25. g4 {[%emt 0:25:41]} axb4 {[%emt 0:01:29]} 26. cxb4 {[%emt 0:00:26]} Rxa2 $16 {[%emt 0:10:51]} 27. gxf5 {[%emt 0:01:29]} Bf6 {[%emt 0:03:10]} 28. Rf4 {[%emt 0:18:06]} Rf7 {[%emt 0:04:38]} 29. Bd4 {[%emt 0:12:15]} Bxd4+ {[%emt 0:07:29]} 30. Qxd4 {[%emt 0:00:19]} Rxc2 {[%emt 0:00:59]} 31. Qxe4 {[%emt 0:00:58]} Ra2 {[%emt 0:01:01]} 32. Qe8+ {[%emt 0:08:56]} Kg7 {[%emt 0:00:19]} 33. Rg4+ {[%emt 0:00:45]} Kf6 {[%emt 0:00:54]} 34. Re1 {[%emt 0:01:28]} Nd8 {[%emt 0:04:14]} 35. Qh8+ {[%emt 0:01:02]} Rg7 {[%emt 0:00:07]} 36. Rxg7 {[%emt 0:00:27]} Nf7 37. Rg6# {[%emt 0:00:17]} 1-0

[Event "HUN-chT Youth 2019"]
[Site "Budapest"]
[Date "2019.10.29"]
[Round "7.14"]
[White "Sass, Oscar"]
[Black "Hajdu, Marton Abris"]
[Result "0-1"]
[ECO "B42"]
[WhiteElo "1316"]
[BlackElo "1818"]
[Annotator "NA"]
[PlyCount "52"]
[EventDate "2019.10.26"]
[EventType "team-tourn"]
[EventCountry "HUN"]
[SourceTitle "playchess.com"]
[Source "ChessBase"]
[SourceQuality "1"]
[TimeControl "5400+30"]

1. e4 {[%emt 0:00:00]} c5 {[%emt 0:00:00]} 2. Nf3 e6 3. d4 {[%emt 0:00:24]} cxd4 {[%emt 0:00:17]} 4. Nxd4 {[%emt 0:00:17]} a6 {[%emt 0:00:11]} 5. Bd3 {[%emt 0:00:18]} Qc7 {[%emt 0:00:22]} 6. O-O {[%emt 0:00:48]} Nf6 {[%emt 0:00:16]} 7. Nc3 {[%emt 0:00:57]} Be7 {[%emt 0:00:13]} 8. Re1 {[%emt 0:01:22]} d6 {[%emt 0:00:18]} 9. Qf3 {[%emt 0:00:40]} O-O {[%emt 0:00:40]} 10. Qg3 {[%emt 0:00:22]} Nbd7 {[%emt 0:01:32]} 11. Bh6 {[%emt 0:00:27]} Nh5 {[%emt 0:00:07]} 12. Qg4 {[%emt 0:00:39]} Ndf6 {[%emt 0:00:16]} 13. Qg5 {[%emt 0:01:08]} Kh8 {[%emt 0:01:19]} 14. g4 {[%emt 0:00:55]} gxh6 {[%emt 0:00:12]} 15. Qxh6 {[%emt 0:00:28]} Rg8 {[%emt 0:00:49]} 16. h3 {[%emt 0:00:25]} Qb6 {[%emt 0:06:21]} 17. Nb3 {[%emt 0:00:50]} Bf8 {[%emt 0:02:15]} 18. Qd2 {[%emt 0:01:12]} Bd7 {[%emt 0:02:59]} 19. Kh1 Ng7 {[%emt 0:01:37]} 20. Qh6 {[%emt 0:02:08]} Nge8 {[%emt 0:01:37]} 21. Qh4 {[%emt 0:01:00]} Bc6 {[%emt 0:02:51]} 22. Kh2 {[%emt 0:00:33]} Be7 {[%emt 0:06:18]} 23. Qh6 {[%emt 0:00:30]} Qxf2+ {[%emt 0:02:04]} 24. Kh1 {[%emt 0:00:21]} Rg6 {[%emt 0:00:28]} 25. Qc1 {[%emt 0:00:48]} Nxg4 {[%emt 0:01:29]} 26. Re2 {[%emt 0:01:04]} Qf3+ {[%emt 0:00:07]} 0-1

[Event "HUN-chT Youth 2019"]
[Site "Budapest"]
[Date "2019.10.29"]
[Round "7.15"]
[White "Forgacs, Attila Jr."]
[Black "Kocsis, Peter"]
[Result "1/2-1/2"]
[ECO "C61"]
[WhiteElo "2104"]
[BlackElo "1929"]
[Annotator "ChessBase"]
[PlyCount "97"]
[EventDate "2019.10.26"]
[EventType "team-tourn"]
[EventCountry "HUN"]
[SourceTitle "playchess.com"]
[Source "ChessBase"]
[SourceQuality "1"]
[TimeControl "5400+30"]

1. e4 {[%emt 0:00:00]} e5 {[%emt 0:00:00]} 2. Nf3 {[%emt 0:00:00]} Nc6 {[%emt 0:00:00]} 3. Bb5 {[%emt 0:00:00]} Nd4 {[%emt 0:00:00]} 4. Nxd4 {[%emt 0:00:05]} exd4 {[%emt 0:00:00]} 5. O-O {[%emt 0:00:21]} a5 {[%emt 0:00:00]} 6. a3 {[%emt 0:05:02]} c6 {[%emt 0:00:00]} 7. Ba4 {[%emt 0:01:01]} Nf6 {[%emt 0:00:45]} 8. d3 {[%emt 0:00:50]} Bc5 {[%emt 0:02:48]} 9. f4 {[%emt 0:02:50]} O-O {[%emt 0:01:33]} 10. Nd2 {[%emt 0:03:45]} d5 {[%emt 0:01:18]} 11. e5 {[%emt 0:02:06]} Ng4 {[%emt 0:00:17]} 12. Nf3 {[%emt 0:03:29]} Qb6 {[%emt 0:05:37]} 13. Re1 {[%emt 0:06:35]} Bf5 {[%emt 0:05:30]} 14. h3 {[%emt 0:03:56]} Ne3 {[%emt 0:00:20]} 15. Bxe3 {[%emt 0:05:13]} dxe3 {[%emt 0:00:03]} 16. d4 {[%emt 0:00:47]} Be7 {[%emt 0:02:23]} 17. Rxe3 {[%emt 0:21:51]} c5 {[%emt 0:03:29]} 18. Rb3 {[%emt 0:07:06]} Qa6 {[%emt 0:09:02]} 19. Re3 {[%emt 0:16:00]} b5 {[%emt 0:04:30]} 20. Bb3 {[%emt 0:00:33]} c4 {[%emt 0:00:03]} 21. Ba2 {[%emt 0:00:12]} Qg6 {[%emt 0:01:39]} 22. Ne1 {[%emt 0:01:29]} Bh4 {[%emt 0:02:00]} 23. c3 {[%emt 0:02:30]} f6 {[%emt 0:13:39]} 24. Kh2 {[%emt 0:06:24]} fxe5 {[%emt 0:01:23]} 25. dxe5 {[%emt 0:00:33]} Bf2 {[%emt 0:05:03]} 26. Rf3 {[%emt 0:02:00]} Bxe1 {[%emt 0:00:16]} 27. Qxe1 {[%emt 0:00:16]} Be4 {[%emt 0:00:23]} 28. Rg3 {[%emt 0:00:42]} Qh6 {[%emt 0:00:35]} 29. Qe3 {[%emt 0:03:10]} Qxf4 {[%emt 0:00:35]} 30. Bb1 {[%emt 0:01:20]} Qxe5 {[%emt 0:01:53]} 31. Bxe4 {[%emt 0:01:00]} Qxe4 {[%emt 0:00:51]} 32. Qxe4 {[%emt 0:00:14]} dxe4 {[%emt 0:00:02]} 33. Re1 {[%emt 0:00:49]} Rf2 {[%emt 0:05:04]} 34. Rxe4 {[%emt 0:00:31]} Rxb2 {[%emt 0:02:17]} 35. Re7 {[%emt 0:00:20]} g6 {[%emt 0:00:02]} 36. h4 {[%emt 0:01:29]} Rf8 {[%emt 0:01:13]} 37. h5 {[%emt 0:00:54]} Rf7 {[%emt 0:03:27]} 38. Re6 {[%emt 0:00:42]} Kg7 {[%emt 0:00:54]} 39. hxg6 {[%emt 0:01:02]} hxg6 {[%emt 0:00:04]} 40. Rexg6+ {[%emt 0:00:56]} Kf8 {[%emt 0:00:31]} 41. Ra6 {[%emt 0:01:22]} a4 {[%emt 0:01:39]} 42. Ra8+ {[%emt 0:00:49]} Ke7 {[%emt 0:00:09]} 43. Ra7+ {[%emt 0:00:32]} Kf8 {[%emt 0:00:08]} 44. Ra8+ {[%emt 0:00:38]} Ke7 {[%emt 0:00:01]} 45. Ra7+ {[%emt 0:00:34]} Kf8 {[%emt 0:00:23]} 46. Ra8+ {[%emt 0:00:24]} Ke7 47. Rg6 Rh7+ 48. Kg3 Kf7 49. Rg4 1/2-1/2

[Event "HUN-chT Youth 2019"]
[Site "Budapest"]
[Date "2019.10.29"]
[Round "7.15"]
[White "Nagy, Botond"]
[Black "Benko, Csanad Botond"]
[Result "1/2-1/2"]
[ECO "D30"]
[WhiteElo "1281"]
[BlackElo "1204"]
[Annotator "NA"]
[PlyCount "112"]
[EventDate "2019.10.26"]
[EventType "team-tourn"]
[EventCountry "HUN"]
[SourceTitle "playchess.com"]
[Source "ChessBase"]
[SourceQuality "1"]
[TimeControl "5400+30"]

1. d4 {[%emt 0:00:00]} d5 {[%emt 0:00:00]} 2. c4 {[%emt 0:00:00]} e6 {[%emt 0:00:00]} 3. Bf4 {[%emt 0:00:25]} Nf6 {[%emt 0:00:15]} 4. e3 {[%emt 0:00:25]} Nbd7 {[%emt 0:00:21]} 5. Nc3 {[%emt 0:00:15]} a6 {[%emt 0:00:27]} 6. Nf3 {[%emt 0:00:43]} Bb4 {[%emt 0:00:14]} 7. Qb3 {[%emt 0:01:37]} Bxc3+ {[%emt 0:00:21]} 8. bxc3 {[%emt 0:01:07]} O-O {[%emt 0:00:20]} 9. Bd3 {[%emt 0:01:37]} c5 {[%emt 0:00:45]} 10. Bd6 {[%emt 0:01:13]} Re8 {[%emt 0:00:38]} 11. dxc5 {[%emt 0:00:17]} b6 {[%emt 0:02:14]} 12. cxb6 {[%emt 0:01:02]} Nxb6 {[%emt 0:00:16]} 13. Be5 {[%emt 0:00:47]} Ng4 {[%emt 0:03:58]} 14. Bd4 {[%emt 0:02:23]} Rb8 {[%emt 0:02:12]} 15. cxd5 {[%emt 0:01:40]} e5 {[%emt 0:00:36]} 16. Bxb6 {[%emt 0:00:53]} Rxb6 {[%emt 0:00:37]} 17. Qc4 {[%emt 0:00:09]} f5 {[%emt 0:03:02]} 18. Be2 {[%emt 0:01:00]} Qd6 {[%emt 0:03:03]} 19. O-O {[%emt 0:01:01]} e4 {[%emt 0:00:20]} 20. g3 {[%emt 0:02:25]} exf3 {[%emt 0:00:12]} 21. Bxf3 {[%emt 0:00:52]} Ne5 {[%emt 0:00:49]} 22. Qe2 {[%emt 0:01:08]} Nxf3+ {[%emt 0:00:31]} 23. Qxf3 {[%emt 0:00:17]} Bb7 {[%emt 0:00:57]} 24. c4 {[%emt 0:01:28]} Rb4 {[%emt 0:01:23]} 25. Rab1 {[%emt 0:00:40]} Rc8 {[%emt 0:05:16]} 26. a3 {[%emt 0:08:36]} Rxb1 {[%emt 0:00:30]} 27. Rxb1 {[%emt 0:00:30]} Qd7 {[%emt 0:00:30]} 28. Qe2 {[%emt 0:00:30]} a5 {[%emt 0:00:30]} 29. Qb2 {[%emt 0:00:30]} Ba6 30. Qb6 Bxc4 {[%emt 0:09:47]} 31. Qxa5 {[%emt 0:00:54]} Qxd5 32. Qa7 {[%emt 0:03:28]} Bb5 {[%emt 0:03:50]} 33. Qb6 {[%emt 0:00:40]} Bc6 {[%emt 0:00:29]} 34. Qb3 {[%emt 0:00:44]} Qxb3 {[%emt 0:00:16]} 35. Rxb3 {[%emt 0:00:09]} Bf3 {[%emt 0:00:24]} 36. Rb1 {[%emt 0:02:22]} Rc3 {[%emt 0:00:48]} 37. Ra1 {[%emt 0:00:14]} Rd3 {[%emt 0:01:00]} 38. Kf1 {[%emt 0:01:11]} Rd1+ {[%emt 0:00:16]} 39. Rxd1 {[%emt 0:00:48]} Bxd1 {[%emt 0:00:05]} 40. Ke1 {[%emt 0:00:08]} Bf3 {[%emt 0:00:24]} 41. Kd2 {[%emt 0:00:30]} Kf7 {[%emt 0:00:10]} 42. Kd3 {[%emt 0:00:34]} Ke6 {[%emt 0:00:10]} 43. h4 {[%emt 0:00:29]} Kd5 {[%emt 0:00:17]} 44. a4 {[%emt 0:00:20]} Kc5 {[%emt 0:00:16]} 45. Kc3 {[%emt 0:00:26]} Bc6 {[%emt 0:00:52]} 46. a5 {[%emt 0:00:49]} Kb5 {[%emt 0:00:10]} 47. Kd4 {[%emt 0:00:07]} Kxa5 {[%emt 0:00:10]} 48. Ke5 {[%emt 0:00:08]} Be4 {[%emt 0:01:20]} 49. Ke6 {[%emt 0:00:40]} Kb4 {[%emt 0:00:18]} 50. Kf7 {[%emt 0:00:08]} g6 {[%emt 0:01:11]} 51. Kg7 {[%emt 0:00:15]} Bf3 {[%emt 0:00:18]} 52. Kxh7 {[%emt 0:00:12]} Bh5 {[%emt 0:00:06]} 53. Kh6 {[%emt 0:00:22]} Kc5 {[%emt 0:00:26]} 54. f3 {[%emt 0:00:08]} Kd5 {[%emt 0:00:31]} 55. g4 {[%emt 0:00:09]} fxg4 {[%emt 0:00:14]} 56. fxg4 {[%emt 0:00:06]} Bxg4 {[%emt 0:00:10]} 1/2-1/2

[Event "HUN-chT Youth 2019"]
[Site "Budapest"]
[Date "2019.10.29"]
[Round "7.16"]
[White "Sulyok, Eszter"]
[Black "Toth, Nikoletta"]
[Result "0-1"]
[ECO "A20"]
[WhiteElo "1893"]
[BlackElo "1965"]
[Annotator "NA"]
[PlyCount "72"]
[EventDate "2019.10.26"]
[EventType "team-tourn"]
[EventCountry "HUN"]
[SourceTitle "playchess.com"]
[Source "ChessBase"]
[SourceQuality "1"]
[TimeControl "5400+30"]

1. c4 {[%emt 0:00:04]} e5 {[%emt 0:00:00]} 2. e3 {[%emt 0:00:07]} Nf6 {[%emt 0:00:43]} 3. a3 {[%emt 0:00:13]} d5 {[%emt 0:00:30]} 4. cxd5 {[%emt 0:00:04]} Nxd5 {[%emt 0:00:05]} 5. Qc2 {[%emt 0:00:05]} (5. Nf3 Bd6 6. Qc2 Qe7 7. d3 O-O 8. g3 c5 9. Bg2 Nc6 10. O-O Rd8 11. Nc3 Nf6 {0-1 (69) Lenderman,A (2593)-Quesada Perez,Y (2655) Arlington 2014}) 5... Nc6 {[%emt 0:00:15]} 6. Nf3 {[%emt 0:00:52] A20: English Opening: 1...e5} Be6 {[%emt 0:02:42]} 7. Bb5 {[%emt 0:00:26]} Bd6 {[%emt 0:04:43]} 8. Bxc6+ {[%emt 0:01:54]} bxc6 {[%emt 0:00:10]} 9. Qxc6+ {[%emt 0:00:09]} Kf8 {[%emt 0:00:09]} 10. Qc2 $146 {[%emt 0:03:40]} ({Predecessor:} 10. Nc3 Ne7 11. Qa4 f5 {½-½ (83) Kabanova,E (2190)-Mukhametgaleeva,R (1983) Ivanovo 2011}) 10... g6 {[%emt 0:03:33]} 11. b4 {[%emt 0:01:16]} Bg4 {[%emt 0:04:39]} 12. Ng1 {[%emt 0:07:50]} Kg7 {[%emt 0:12:07]} 13. h3 {[%emt 0:03:25]} Be6 {[%emt 0:00:06]} 14. Bb2 {[%emt 0:00:33]} f6 {[%emt 0:00:36]} 15. Nf3 {[%emt 0:00:55]} Re8 {[%emt 0:01:47]} 16. d3 {[%emt 0:01:40]} Bxb4+ {[%emt 0:07:33]} (16... Rc8 $11) 17. axb4 {[%emt 0:18:35]} Nxb4 {[%emt 0:00:04]} 18. Qc3 {[%emt 0:00:05]} Nxd3+ {[%emt 0:00:04]} 19. Ke2 {[%emt 0:00:05]} Rb8 {[%emt 0:07:56]} (19... Nxb2 $14 20. Qxb2 Bc4+ 21. Ke1 a5) 20. Qxd3 {[%emt 0:04:45]} Rxb2+ {[%emt 0:03:08]} 21. Nbd2 {[%emt 0:00:21]} e4 $1 {[%emt 0:06:11]} 22. Qxe4 {[%emt 0:02:12]} Bd5 {[%emt 0:00:09]} 23. Qd3 {[%emt 0:01:27]} Bxf3+ {[%emt 0:00:05]} 24. gxf3 {[%emt 0:00:17]} Qxd3+ {[%emt 0:00:08]} 25. Kxd3 {[%emt 0:00:03]} Rd8+ {[%emt 0:00:06]} 26. Kc3 {[%emt 0:00:53]} Rdxd2 {[%emt 0:03:16]} 27. Rxa7 {[%emt 0:00:56]} (27. Rhc1 $17) 27... Rbc2+ {[%emt 0:00:19]} ({Not} 27... Rxf2 28. Rc1 $17) 28. Kb3 {[%emt 0:01:25]} Rxf2 {[%emt 0:00:37]} 29. Rd1 $19 {[%emt 0:03:15]} g5 {[%emt 0:11:24]} 30. Rg1 {[%emt 0:09:03]} Kg6 {[%emt 0:02:27]} 31. h4 {[%emt 0:04:01]} Rce2 {[%emt 0:01:35]} 32. Ra6 {[%emt 0:03:13]} Rxe3+ {[%emt 0:03:02]} 33. Kc4 {[%emt 0:00:09]} h6 {[%emt 0:00:53]} 34. hxg5 {[%emt 0:01:16]} hxg5 {[%emt 0:00:14]} 35. Kd5 {[%emt 0:02:34]} Rfxf3 {[%emt 0:01:00]} 36. Rc6 {[%emt 0:01:27]} Rd3+ {[%emt 0:01:05]} 0-1